[Event "Late-Titled-Tuesday-Blitz-April-23-2024"]
[Site "Chess.com"]
[Date "2024.04.23"]
[Round "5"]
[White "super_emi_26"]
[Black "CombativeWombat"]
[Result "1-0"]
[WhiteElo "2698"]
[BlackElo "2337"]
[TimeControl "180+1"]
[EndTime "14:50:42 PDT"]
[Termination "super_emi_26 won by resignation"]

1. b3 {[%clk 0:03:00.9]} 1... e5 {[%clk 0:02:59.1]} 2. Bb2 {[%clk 0:03:01.8]}
2... Nc6 {[%clk 0:02:58.9]} 3. e3 {[%clk 0:03:02.5]} 3... f6 {[%clk 0:02:59.1]}
4. Bb5 {[%clk 0:03:02.1]} 4... d5 {[%clk 0:02:59]} 5. Bxc6+ {[%clk 0:03:01.6]}
5... bxc6 {[%clk 0:02:58.9]} 6. Ne2 {[%clk 0:03:02]} 6... Bd6 {[%clk 0:02:58.4]}
7. f4 {[%clk 0:03:02.9]} 7... e4 {[%clk 0:02:44.9]} 8. O-O {[%clk 0:03:00.9]}
8... Nh6 {[%clk 0:02:44.7]} 9. Nbc3 {[%clk 0:02:59.7]} 9... O-O {[%clk
0:02:43.6]} 10. Qe1 {[%clk 0:02:59.7]} 10... Qe8 {[%clk 0:02:24.6]} 11. h3
{[%clk 0:02:58.8]} 11... Nf5 {[%clk 0:02:16.4]} 12. g4 {[%clk 0:02:58.2]} 12...
Nh4 {[%clk 0:02:15.8]} 13. Qxh4 {[%clk 0:02:57.6]} 1-0

[Event "Late-Titled-Tuesday-Blitz-April-23-2024"]
[Site "Chess.com"]
[Date "2024.04.23"]
[Round "5"]
[White "Hakiki_satranc"]
[Black "crushernt"]
[Result "1-0"]
[WhiteElo "2394"]
[BlackElo "2100"]
[TimeControl "180+1"]
[EndTime "14:52:11 PDT"]
[Termination "Hakiki_satranc won by resignation"]

1. e4 {[%clk 0:03:00.9]} 1... c5 {[%clk 0:02:56.9]} 2. Nf3 {[%clk 0:02:59.9]}
2... d6 {[%clk 0:02:56.9]} 3. d4 {[%clk 0:02:59.9]} 3... cxd4 {[%clk 0:02:56.8]}
4. Nxd4 {[%clk 0:03:00.8]} 4... Nf6 {[%clk 0:02:56.1]} 5. Bb5+ {[%clk
0:03:01.5]} 5... Nbd7 {[%clk 0:02:52.3]} 6. O-O {[%clk 0:02:54.8]} 6... e5
{[%clk 0:02:49.9]} 7. Nf5 {[%clk 0:02:53.2]} 7... a6 {[%clk 0:02:46.6]} 8. Bxd7+
{[%clk 0:02:45.3]} 8... Qxd7 {[%clk 0:02:46.1]} 9. Nc3 {[%clk 0:02:46.2]} 9...
Nxe4 {[%clk 0:02:23.2]} 10. Nxg7+ {[%clk 0:02:45.8]} 10... Bxg7 {[%clk
0:02:22.3]} 11. Nxe4 {[%clk 0:02:46.7]} 11... d5 {[%clk 0:02:13.8]} 12. Bh6
{[%clk 0:02:45.8]} 12... O-O {[%clk 0:01:58.5]} 13. Bxg7 {[%clk 0:02:43.8]}
13... Kxg7 {[%clk 0:01:59.4]} 14. Ng3 {[%clk 0:02:43.7]} 14... Qg4 {[%clk
0:01:50.3]} 15. Qxd5 {[%clk 0:02:38.8]} 15... Re8 {[%clk 0:01:44.1]} 16. f4
{[%clk 0:02:32.2]} 16... e4 {[%clk 0:01:36.3]} 17. Nh5+ {[%clk 0:02:24.7]} 1-0

[Event "Late-Titled-Tuesday-Blitz-April-23-2024"]
[Site "Chess.com"]
[Date "2024.04.23"]
[Round "5"]
[White "NovakRatko"]
[Black "gorgeous1083"]
[Result "1-0"]
[WhiteElo "2386"]
[BlackElo "2089"]
[TimeControl "180+1"]
[EndTime "14:52:13 PDT"]
[Termination "NovakRatko won by resignation"]

1. d4 {[%clk 0:02:32.5]} 1... Nf6 {[%clk 0:02:59]} 2. c4 {[%clk 0:02:32.7]} 2...
e6 {[%clk 0:02:58.9]} 3. Bg5 {[%clk 0:02:32]} 3... d5 {[%clk 0:02:58.2]} 4. Nc3
{[%clk 0:02:31.9]} 4... Be7 {[%clk 0:02:58.2]} 5. e3 {[%clk 0:02:31.1]} 5... O-O
{[%clk 0:02:58.5]} 6. Nf3 {[%clk 0:02:30.7]} 6... c5 {[%clk 0:02:57.7]} 7. dxc5
{[%clk 0:02:29.6]} 7... Bxc5 {[%clk 0:02:57.3]} 8. cxd5 {[%clk 0:02:28.3]} 8...
exd5 {[%clk 0:02:57.4]} 9. Bxf6 {[%clk 0:02:27.6]} 9... Qxf6 {[%clk 0:02:55.6]}
10. Qxd5 {[%clk 0:02:27.6]} 10... Bb4 {[%clk 0:02:53]} 11. Qb3 {[%clk
0:02:26.2]} 11... Nc6 {[%clk 0:02:51.3]} 12. Rc1 {[%clk 0:02:11.3]} 12... Be6
{[%clk 0:02:49]} 13. Bc4 {[%clk 0:02:03.7]} 13... Bxc3+ {[%clk 0:02:46.3]} 14.
Qxc3 {[%clk 0:02:03.2]} 14... Qg6 {[%clk 0:02:32.1]} 15. Bxe6 {[%clk 0:01:49.9]}
15... Qxg2 {[%clk 0:02:22.3]} 16. Rg1 {[%clk 0:01:49.3]} 16... Qxg1+ {[%clk
0:02:13.3]} 17. Nxg1 {[%clk 0:01:48.3]} 17... fxe6 {[%clk 0:02:13.4]} 18. Qb3
{[%clk 0:01:47.7]} 1-0

[Event "Late-Titled-Tuesday-Blitz-April-23-2024"]
[Site "Chess.com"]
[Date "2024.04.23"]
[Round "5"]
[White "IraZyne"]
[Black "carloseduar100"]
[Result "0-1"]
[WhiteElo "2328"]
[BlackElo "2204"]
[TimeControl "180+1"]
[EndTime "14:52:18 PDT"]
[Termination "carloseduar100 won by resignation"]

1. e4 {[%clk 0:02:54.3]} 1... e6 {[%clk 0:02:59]} 2. d4 {[%clk 0:02:52.4]} 2...
d5 {[%clk 0:02:59.9]} 3. Nc3 {[%clk 0:02:52.4]} 3... Nf6 {[%clk 0:02:59.4]} 4.
e5 {[%clk 0:02:51.8]} 4... Nfd7 {[%clk 0:02:59.5]} 5. f4 {[%clk 0:02:51.7]} 5...
c5 {[%clk 0:02:59.7]} 6. Nf3 {[%clk 0:02:51.7]} 6... Nc6 {[%clk 0:03:00.6]} 7.
Ne2 {[%clk 0:02:51.7]} 7... cxd4 {[%clk 0:02:58.6]} 8. Nexd4 {[%clk 0:02:50.8]}
8... Nxd4 {[%clk 0:02:58.6]} 9. Nxd4 {[%clk 0:02:49.4]} 9... Bc5 {[%clk
0:02:57.3]} 10. c3 {[%clk 0:02:46.2]} 10... Qh4+ {[%clk 0:02:54.9]} 11. g3
{[%clk 0:02:44.5]} 11... Qe7 {[%clk 0:02:55.4]} 12. Bd3 {[%clk 0:02:40.3]} 12...
h5 {[%clk 0:02:55.5]} 13. Be3 {[%clk 0:02:38.2]} 13... a6 {[%clk 0:02:55.8]} 14.
Qf3 {[%clk 0:02:37.2]} 14... h4 {[%clk 0:02:55.6]} 15. g4 {[%clk 0:02:36.9]}
15... Nf8 {[%clk 0:02:25.2]} 16. O-O-O {[%clk 0:02:32.8]} 16... Bd7 {[%clk
0:02:25.5]} 17. f5 {[%clk 0:02:31.3]} 17... O-O-O {[%clk 0:02:25.1]} 18. h3
{[%clk 0:02:26.1]} 18... Kb8 {[%clk 0:02:23.6]} 19. Rhf1 {[%clk 0:02:23]} 19...
Ka8 {[%clk 0:02:22.2]} 20. f6 {[%clk 0:02:17.8]} 20... gxf6 {[%clk 0:02:21.9]}
21. Qxf6 {[%clk 0:02:16.8]} 21... Qxf6 {[%clk 0:02:22.3]} 22. Rxf6 {[%clk
0:02:16.3]} 22... Be8 {[%clk 0:02:22.9]} 23. Kd2 {[%clk 0:02:09.6]} 23... Nd7
{[%clk 0:02:21.8]} 24. Rf2 {[%clk 0:02:06.7]} 24... Nxe5 {[%clk 0:02:21.8]} 25.
Bc2 {[%clk 0:02:03.6]} 25... Nc4+ {[%clk 0:02:20.9]} 26. Ke2 {[%clk 0:02:02.4]}
26... Nxe3 {[%clk 0:02:21.2]} 27. Kxe3 {[%clk 0:02:02]} 27... e5 {[%clk
0:02:21.4]} 0-1

[Event "Late-Titled-Tuesday-Blitz-April-23-2024"]
[Site "Chess.com"]
[Date "2024.04.23"]
[Round "5"]
[White "Alexei_Gubajdullin"]
[Black "sassassasss"]
[Result "1-0"]
[WhiteElo "2594"]
[BlackElo "2445"]
[TimeControl "180+1"]
[EndTime "14:52:45 PDT"]
[Termination "Alexei_Gubajdullin won by resignation"]

1. Nf3 {[%clk 0:02:59]} 1... Nc6 {[%clk 0:02:59.2]} 2. d4 {[%clk 0:02:57.6]}
2... d6 {[%clk 0:02:59.2]} 3. Bf4 {[%clk 0:02:55.7]} 3... Bg4 {[%clk 0:02:58.4]}
4. e3 {[%clk 0:02:55.5]} 4... e6 {[%clk 0:02:58.2]} 5. Be2 {[%clk 0:02:55.6]}
5... Nf6 {[%clk 0:02:58.5]} 6. O-O {[%clk 0:02:55.7]} 6... Be7 {[%clk 0:02:59]}
7. h3 {[%clk 0:02:55.9]} 7... Bh5 {[%clk 0:02:58.8]} 8. c4 {[%clk 0:02:55.9]}
8... O-O {[%clk 0:02:58.5]} 9. Bh2 {[%clk 0:02:55.9]} 9... Re8 {[%clk
0:02:58.2]} 10. Nc3 {[%clk 0:02:56]} 10... Bf8 {[%clk 0:02:57.5]} 11. Nd2 {[%clk
0:02:55.9]} 11... e5 {[%clk 0:02:56.5]} 12. Bxh5 {[%clk 0:02:54.1]} 12... exd4
{[%clk 0:02:56.7]} 13. exd4 {[%clk 0:02:52.8]} 13... Nxd4 {[%clk 0:02:55.4]} 14.
Bf3 {[%clk 0:02:51.6]} 14... c6 {[%clk 0:02:54.8]} 15. Nde4 {[%clk 0:02:50.8]}
15... Nxf3+ {[%clk 0:02:53.9]} 16. Qxf3 {[%clk 0:02:49.9]} 16... Nxe4 {[%clk
0:02:52.7]} 17. Nxe4 {[%clk 0:02:49.3]} 17... d5 {[%clk 0:02:52.3]} 18. cxd5
{[%clk 0:02:48.1]} 18... Qxd5 {[%clk 0:02:52.3]} 19. Nc3 {[%clk 0:02:47.4]}
19... Qa5 {[%clk 0:02:50.7]} 20. Rfe1 {[%clk 0:02:44.6]} 20... Qb4 {[%clk
0:02:49.1]} 21. Re2 {[%clk 0:02:39.7]} 21... Rad8 {[%clk 0:02:45.5]} 22. Rae1
{[%clk 0:02:37.8]} 22... Rxe2 {[%clk 0:02:44.5]} 23. Rxe2 {[%clk 0:02:26.1]}
23... f6 {[%clk 0:02:36.7]} 24. Bc7 {[%clk 0:02:18]} 24... Rd7 {[%clk
0:02:30.5]} 25. Bf4 {[%clk 0:02:15.8]} 25... Rd8 {[%clk 0:02:26.7]} 26. Qe4
{[%clk 0:02:12.9]} 26... Qa5 {[%clk 0:02:22.5]} 27. Qe6+ {[%clk 0:02:11.6]}
27... Kh8 {[%clk 0:02:21.1]} 28. Qf7 {[%clk 0:02:11.6]} 28... b5 {[%clk
0:02:03.9]} 29. Bc7 {[%clk 0:02:03.1]} 1-0

[Event "Late-Titled-Tuesday-Blitz-April-23-2024"]
[Site "Chess.com"]
[Date "2024.04.23"]
[Round "5"]
[White "rikchessmx"]
[Black "SmirnovTimofey2000"]
[Result "1-0"]
[WhiteElo "2308"]
[BlackElo "1969"]
[TimeControl "180+1"]
[EndTime "14:52:56 PDT"]
[Termination "rikchessmx won by resignation"]

1. e4 {[%clk 0:03:00.9]} 1... e5 {[%clk 0:02:55.5]} 2. Nc3 {[%clk 0:03:01.8]}
2... Nf6 {[%clk 0:02:54.8]} 3. Nge2 {[%clk 0:03:01.9]} 3... Bc5 {[%clk
0:02:51.7]} 4. d3 {[%clk 0:02:59.3]} 4... d6 {[%clk 0:02:51.3]} 5. h3 {[%clk
0:02:57.5]} 5... Nc6 {[%clk 0:02:46.1]} 6. Bg5 {[%clk 0:02:56.7]} 6... h6 {[%clk
0:02:45.6]} 7. Bh4 {[%clk 0:02:56.6]} 7... Be6 {[%clk 0:02:38]} 8. g4 {[%clk
0:02:55]} 8... g5 {[%clk 0:02:36.4]} 9. Bg3 {[%clk 0:02:54.4]} 9... h5 {[%clk
0:02:23.9]} 10. f3 {[%clk 0:02:53.6]} 10... Nd4 {[%clk 0:02:09]} 11. Nxd4 {[%clk
0:02:52.5]} 11... Bxd4 {[%clk 0:02:09.9]} 12. Bg2 {[%clk 0:02:49]} 12... Qd7
{[%clk 0:01:46.1]} 13. Qd2 {[%clk 0:02:47]} 13... Rg8 {[%clk 0:01:27.5]} 14. Bf2
{[%clk 0:02:45.7]} 14... Bxf2+ {[%clk 0:01:19.2]} 15. Qxf2 {[%clk 0:02:44.9]}
15... h4 {[%clk 0:01:15.5]} 16. O-O-O {[%clk 0:02:42.8]} 16... d5 {[%clk
0:01:12.7]} 17. d4 {[%clk 0:02:41.9]} 17... O-O-O {[%clk 0:01:06.5]} 18. dxe5
{[%clk 0:02:41.5]} 18... Nh7 {[%clk 0:00:53]} 19. exd5 {[%clk 0:02:41.2]} 1-0

[Event "Late-Titled-Tuesday-Blitz-April-23-2024"]
[Site "Chess.com"]
[Date "2024.04.23"]
[Round "5"]
[White "wanyaland"]
[Black "LUISMIGUELOV"]
[Result "0-1"]
[WhiteElo "2428"]
[BlackElo "2224"]
[TimeControl "180+1"]
[EndTime "14:53:16 PDT"]
[Termination "LUISMIGUELOV won by resignation"]

1. d4 {[%clk 0:02:57.1]} 1... c6 {[%clk 0:03:00.4]} 2. c4 {[%clk 0:02:57.1]}
2... d5 {[%clk 0:03:00.7]} 3. Nc3 {[%clk 0:02:57.5]} 3... h6 {[%clk 0:02:59.1]}
4. Nf3 {[%clk 0:02:57.9]} 4... Nf6 {[%clk 0:02:59]} 5. e3 {[%clk 0:02:57.8]}
5... Nbd7 {[%clk 0:02:52.2]} 6. cxd5 {[%clk 0:02:54.4]} 6... cxd5 {[%clk
0:02:45]} 7. Bd3 {[%clk 0:02:54.1]} 7... Nb6 {[%clk 0:02:40.6]} 8. Ne5 {[%clk
0:02:53.5]} 8... e6 {[%clk 0:02:35.4]} 9. O-O {[%clk 0:02:53]} 9... Bd6 {[%clk
0:02:32.7]} 10. f4 {[%clk 0:02:52.9]} 10... O-O {[%clk 0:02:30.9]} 11. Bd2
{[%clk 0:02:52.7]} 11... Bd7 {[%clk 0:02:29.8]} 12. Rc1 {[%clk 0:02:52.8]} 12...
Rc8 {[%clk 0:02:29.3]} 13. Rf3 {[%clk 0:02:52.6]} 13... Nc4 {[%clk 0:02:28.6]}
14. Bxc4 {[%clk 0:02:51.6]} 14... dxc4 {[%clk 0:02:22.8]} 15. Rg3 {[%clk
0:02:30.3]} 15... b5 {[%clk 0:02:21]} 16. Qf3 {[%clk 0:02:20.8]} 16... b4 {[%clk
0:02:16.5]} 17. Ne2 {[%clk 0:02:21]} 17... Bxe5 {[%clk 0:02:08.1]} 18. fxe5
{[%clk 0:02:20.9]} 18... Bc6 {[%clk 0:02:05.8]} 19. Qf4 {[%clk 0:02:20.3]} 19...
Nh5 {[%clk 0:02:02.4]} 20. Qg4 {[%clk 0:02:19.2]} 20... Nxg3 {[%clk 0:02:02]}
21. Qxg3 {[%clk 0:02:20.1]} 21... Qg5 {[%clk 0:02:00.1]} 22. Qf2 {[%clk
0:02:18.8]} 22... c3 {[%clk 0:01:49.7]} 23. bxc3 {[%clk 0:02:15.6]} 23... bxc3
{[%clk 0:01:49.7]} 24. Nxc3 {[%clk 0:02:16]} 24... Bb7 {[%clk 0:01:37.6]} 25. e4
{[%clk 0:02:12.6]} 25... Qg4 {[%clk 0:01:32.9]} 26. d5 {[%clk 0:02:10]} 26...
exd5 {[%clk 0:01:27]} 27. exd5 {[%clk 0:02:09.9]} 27... Rxc3 {[%clk 0:01:26.4]}
28. Bxc3 {[%clk 0:02:08.3]} 28... Bxd5 {[%clk 0:01:25.3]} 29. Rd1 {[%clk
0:02:07.7]} 29... Qxd1+ {[%clk 0:01:23.7]} 0-1

[Event "Late-Titled-Tuesday-Blitz-April-23-2024"]
[Site "Chess.com"]
[Date "2024.04.23"]
[Round "5"]
[White "aranibos"]
[Black "Stanbad1"]
[Result "0-1"]
[WhiteElo "2255"]
[BlackElo "2606"]
[TimeControl "180+1"]
[EndTime "14:54:15 PDT"]
[Termination "Stanbad1 won by resignation"]

1. e4 {[%clk 0:02:51.3]} 1... e6 {[%clk 0:02:59.5]} 2. d4 {[%clk 0:02:46.7]}
2... d5 {[%clk 0:02:59.6]} 3. Nc3 {[%clk 0:02:46.2]} 3... Nf6 {[%clk 0:02:59.4]}
4. e5 {[%clk 0:02:44.1]} 4... Nfd7 {[%clk 0:02:59.4]} 5. f4 {[%clk 0:02:44.7]}
5... c5 {[%clk 0:02:59.7]} 6. Nf3 {[%clk 0:02:45.3]} 6... Nc6 {[%clk 0:03:00.2]}
7. Be3 {[%clk 0:02:45.7]} 7... a6 {[%clk 0:03:00.7]} 8. Be2 {[%clk 0:02:36.2]}
8... Qb6 {[%clk 0:02:55]} 9. a3 {[%clk 0:02:23.8]} 9... c4 {[%clk 0:02:47.5]}
10. Rb1 {[%clk 0:02:18.1]} 10... Qa5 {[%clk 0:02:46.3]} 11. O-O {[%clk
0:02:17.5]} 11... b5 {[%clk 0:02:42.4]} 12. Ng5 {[%clk 0:02:14]} 12... h6 {[%clk
0:02:39.1]} 13. Nxf7 {[%clk 0:02:13.2]} 13... Kxf7 {[%clk 0:02:38.2]} 14. Bh5+
{[%clk 0:02:13.6]} 14... Ke7 {[%clk 0:02:33.6]} 15. f5 {[%clk 0:02:13.6]} 15...
Nb6 {[%clk 0:02:33.1]} 16. Qc1 {[%clk 0:02:02.4]} 16... exf5 {[%clk 0:02:30.3]}
17. Ne2 {[%clk 0:01:53.9]} 17... g5 {[%clk 0:02:17.1]} 18. b4 {[%clk 0:01:47.2]}
18... cxb3 {[%clk 0:02:15.5]} 19. cxb3 {[%clk 0:01:45.6]} 19... Kd7 {[%clk
0:02:00.3]} 20. b4 {[%clk 0:01:45.4]} 20... Qa4 {[%clk 0:01:58.8]} 21. Ng3
{[%clk 0:01:45.3]} 21... Nc4 {[%clk 0:01:57.8]} 22. Nxf5 {[%clk 0:01:41.2]}
22... Qxa3 {[%clk 0:01:57.5]} 23. Qxa3 {[%clk 0:01:32.9]} 23... Nxa3 {[%clk
0:01:56.4]} 24. Rb3 {[%clk 0:01:32]} 24... Nc4 {[%clk 0:01:56.3]} 25. Bf2 {[%clk
0:01:31.8]} 25... Kc7 {[%clk 0:01:55.7]} 26. Ne3 {[%clk 0:01:31.6]} 26... Nd2
{[%clk 0:01:55.5]} 27. Nxd5+ {[%clk 0:01:29.8]} 27... Kb7 {[%clk 0:01:55.5]} 28.
Rf3 {[%clk 0:01:27.9]} 28... Nxf1 {[%clk 0:01:53.8]} 29. Rf7+ {[%clk 0:01:27.1]}
29... Kb8 {[%clk 0:01:53]} 30. Kxf1 {[%clk 0:01:25.5]} 30... Be6 {[%clk
0:01:53.2]} 31. Nc7 {[%clk 0:01:09.4]} 31... Bxf7 {[%clk 0:01:53]} 32. Nxa8
{[%clk 0:01:09.2]} 32... Bxh5 {[%clk 0:01:51.9]} 33. Nb6 {[%clk 0:01:04.3]}
33... Bxb4 {[%clk 0:01:51.4]} 34. Bg3 {[%clk 0:00:53.3]} 34... Nxd4 {[%clk
0:01:49.3]} 35. e6+ {[%clk 0:00:52.5]} 35... Kb7 {[%clk 0:01:49.5]} 0-1

[Event "Late-Titled-Tuesday-Blitz-April-23-2024"]
[Site "Chess.com"]
[Date "2024.04.23"]
[Round "5"]
[White "VojtechPlat"]
[Black "h4parah5"]
[Result "0-1"]
[WhiteElo "2868"]
[BlackElo "3039"]
[TimeControl "180+1"]
[EndTime "14:54:39 PDT"]
[Termination "h4parah5 won by resignation"]

1. e4 {[%clk 0:02:59.4]} 1... c5 {[%clk 0:02:59.3]} 2. Nf3 {[%clk 0:02:59.2]}
2... Nc6 {[%clk 0:02:59.7]} 3. c3 {[%clk 0:02:59.3]} 3... Nf6 {[%clk 0:02:58.2]}
4. e5 {[%clk 0:02:59.3]} 4... Nd5 {[%clk 0:02:58.4]} 5. Bc4 {[%clk 0:03:00]}
5... Nb6 {[%clk 0:02:55.9]} 6. Bb3 {[%clk 0:03:00.2]} 6... d5 {[%clk 0:02:53.9]}
7. exd6 {[%clk 0:03:00.1]} 7... Qxd6 {[%clk 0:02:53.7]} 8. d4 {[%clk 0:03:00]}
8... cxd4 {[%clk 0:02:47]} 9. cxd4 {[%clk 0:03:00]} 9... Be6 {[%clk 0:02:45.5]}
10. O-O {[%clk 0:02:59.7]} 10... Bxb3 {[%clk 0:02:40.6]} 11. Qxb3 {[%clk
0:02:59.1]} 11... e6 {[%clk 0:02:26.4]} 12. Nc3 {[%clk 0:02:58.9]} 12... Qb4
{[%clk 0:02:24.4]} 13. Rd1 {[%clk 0:02:45.4]} 13... Rd8 {[%clk 0:01:57.6]} 14.
Be3 {[%clk 0:02:39.1]} 14... Qxb3 {[%clk 0:01:34.8]} 15. axb3 {[%clk 0:02:38.7]}
15... f6 {[%clk 0:01:34]} 16. Nd2 {[%clk 0:02:20.2]} 16... Nd5 {[%clk
0:01:29.3]} 17. Nc4 {[%clk 0:02:19]} 17... Bb4 {[%clk 0:01:23.2]} 18. Ne4 {[%clk
0:02:15.7]} 18... Kf7 {[%clk 0:01:16.2]} 19. Nc5 {[%clk 0:02:12]} 19... b6
{[%clk 0:01:07.9]} 20. Nd3 {[%clk 0:02:08.7]} 20... Rd7 {[%clk 0:01:04.8]} 21.
Rac1 {[%clk 0:02:06.5]} 21... Nce7 {[%clk 0:00:57.8]} 22. Nce5+ {[%clk
0:01:57.2]} 22... fxe5 {[%clk 0:00:54.5]} 23. Nxe5+ {[%clk 0:01:57.3]} 23... Ke8
{[%clk 0:00:54.8]} 24. Nxd7 {[%clk 0:01:54]} 24... Kxd7 {[%clk 0:00:55.7]} 25.
Bg5 {[%clk 0:01:50.9]} 25... Nf5 {[%clk 0:00:54.3]} 26. g4 {[%clk 0:01:45.9]}
26... Nd6 {[%clk 0:00:53]} 27. Kg2 {[%clk 0:01:45.6]} 27... Rf8 {[%clk
0:00:50.3]} 28. Bh4 {[%clk 0:01:44]} 28... Nf4+ {[%clk 0:00:48.6]} 29. Kf1
{[%clk 0:01:43]} 29... Ne4 {[%clk 0:00:47.9]} 30. Bg3 {[%clk 0:01:25.8]} 30...
Nd2+ {[%clk 0:00:47.6]} 0-1

[Event "Late-Titled-Tuesday-Blitz-April-23-2024"]
[Site "Chess.com"]
[Date "2024.04.23"]
[Round "5"]
[White "giomar27"]
[Black "Aygehovit1992"]
[Result "1/2-1/2"]
[WhiteElo "2499"]
[BlackElo "2708"]
[TimeControl "180+1"]
[EndTime "14:54:39 PDT"]
[Termination "Game drawn by repetition"]

1. d4 {[%clk 0:03:00.9]} 1... Nf6 {[%clk 0:02:57.2]} 2. Nc3 {[%clk 0:03:01.2]}
2... d5 {[%clk 0:02:56.6]} 3. Bf4 {[%clk 0:03:01.6]} 3... g6 {[%clk 0:02:56.5]}
4. e3 {[%clk 0:03:01.8]} 4... Bg7 {[%clk 0:02:56.9]} 5. h4 {[%clk 0:03:02]} 5...
h5 {[%clk 0:02:55.1]} 6. Nf3 {[%clk 0:03:00.7]} 6... O-O {[%clk 0:02:55.3]} 7.
Ne5 {[%clk 0:03:00.3]} 7... c5 {[%clk 0:02:55.3]} 8. dxc5 {[%clk 0:02:57.2]}
8... Nc6 {[%clk 0:02:55.9]} 9. Be2 {[%clk 0:02:46.2]} 9... Qa5 {[%clk
0:02:46.4]} 10. O-O {[%clk 0:02:40.4]} 10... Qxc5 {[%clk 0:02:46.4]} 11. Nb5
{[%clk 0:02:35.8]} 11... Nxe5 {[%clk 0:02:40.9]} 12. Bxe5 {[%clk 0:02:35.5]}
12... Bg4 {[%clk 0:02:40.8]} 13. Bd4 {[%clk 0:02:29.5]} 13... Qxb5 {[%clk
0:02:36]} 14. Bxb5 {[%clk 0:02:28.7]} 14... Bxd1 {[%clk 0:02:36.6]} 15. Rfxd1
{[%clk 0:02:27]} 15... e6 {[%clk 0:02:36.5]} 16. Be2 {[%clk 0:02:14]} 16... Rac8
{[%clk 0:02:33.5]} 17. Rac1 {[%clk 0:02:13.9]} 17... Ne4 {[%clk 0:02:31.7]} 18.
Bxg7 {[%clk 0:02:07.1]} 18... Kxg7 {[%clk 0:02:32.6]} 19. c4 {[%clk 0:02:07.5]}
19... dxc4 {[%clk 0:02:31.6]} 20. Rxc4 {[%clk 0:02:05]} 20... Rxc4 {[%clk
0:02:31.4]} 21. Bxc4 {[%clk 0:02:05.9]} 21... Rc8 {[%clk 0:02:31]} 22. Bb3
{[%clk 0:01:55.7]} 22... Nc5 {[%clk 0:02:30.3]} 23. Bc2 {[%clk 0:01:55]} 23...
a5 {[%clk 0:02:25.8]} 24. Kf1 {[%clk 0:01:49.2]} 24... Kf6 {[%clk 0:02:25.1]}
25. Ke2 {[%clk 0:01:49.1]} 25... Ke7 {[%clk 0:02:25.5]} 26. a3 {[%clk
0:01:43.5]} 26... b5 {[%clk 0:02:24.5]} 27. Bd3 {[%clk 0:01:36.3]} 27... Nxd3
{[%clk 0:02:14.5]} 28. Kxd3 {[%clk 0:01:35.8]} 28... e5 {[%clk 0:02:04.4]} 29.
e4 {[%clk 0:01:13.7]} 29... f5 {[%clk 0:01:59.8]} 30. f3 {[%clk 0:01:08.7]}
30... f4 {[%clk 0:01:50.2]} 31. Ke2 {[%clk 0:01:07.6]} 31... Rc2+ {[%clk
0:01:40.3]} 32. Rd2 {[%clk 0:01:07.9]} 32... Rxd2+ {[%clk 0:01:40.4]} 33. Kxd2
{[%clk 0:01:08.8]} 33... Kd6 {[%clk 0:01:39.3]} 34. b4 {[%clk 0:01:04.3]} 34...
axb4 {[%clk 0:01:39.3]} 35. axb4 {[%clk 0:01:04.2]} 35... Ke6 {[%clk 0:01:40.2]}
36. Ke2 {[%clk 0:01:01.1]} 36... Kf6 {[%clk 0:01:40.6]} 37. Kf2 {[%clk
0:00:59.5]} 37... g5 {[%clk 0:01:41.1]} 38. hxg5+ {[%clk 0:00:44.6]} 38... Kxg5
{[%clk 0:01:41]} 39. Kg1 {[%clk 0:00:45]} 39... h4 {[%clk 0:01:37.4]} 40. Kh2
{[%clk 0:00:44.6]} 40... Kh5 {[%clk 0:01:37.6]} 41. Kh3 {[%clk 0:00:45]} 41...
Kg5 {[%clk 0:01:38.1]} 42. Kh2 {[%clk 0:00:45.5]} 42... Kh5 {[%clk 0:01:38.7]}
43. Kh3 {[%clk 0:00:46]} 43... Kg5 {[%clk 0:01:39.3]} 44. Kh2 {[%clk 0:00:46.5]}
1/2-1/2

[Event "Late-Titled-Tuesday-Blitz-April-23-2024"]
[Site "Chess.com"]
[Date "2024.04.23"]
[Round "5"]
[White "Nicolik"]
[Black "JSPrepz"]
[Result "0-1"]
[WhiteElo "2508"]
[BlackElo "2795"]
[TimeControl "180+1"]
[EndTime "14:54:43 PDT"]
[Termination "JSPrepz won by checkmate"]

1. d4 {[%clk 0:03:00.9]} 1... Nf6 {[%clk 0:02:59.8]} 2. Nc3 {[%clk 0:03:00.3]}
2... e6 {[%clk 0:02:59.7]} 3. Bf4 {[%clk 0:03:00.2]} 3... b6 {[%clk 0:02:57]} 4.
e4 {[%clk 0:02:56.8]} 4... Bb4 {[%clk 0:02:56.7]} 5. Bd3 {[%clk 0:02:56.7]} 5...
Bb7 {[%clk 0:02:55.4]} 6. f3 {[%clk 0:02:55.4]} 6... d5 {[%clk 0:02:51.2]} 7. e5
{[%clk 0:02:52.2]} 7... Nfd7 {[%clk 0:02:46]} 8. Ne2 {[%clk 0:02:46.8]} 8... c5
{[%clk 0:02:45.1]} 9. a3 {[%clk 0:02:47.2]} 9... Bxc3+ {[%clk 0:02:40.9]} 10.
Nxc3 {[%clk 0:02:48.1]} 10... a6 {[%clk 0:02:36.3]} 11. dxc5 {[%clk 0:02:37.8]}
11... bxc5 {[%clk 0:02:35.3]} 12. O-O {[%clk 0:02:34.7]} 12... Nc6 {[%clk
0:02:33.2]} 13. Re1 {[%clk 0:02:35.1]} 13... g5 {[%clk 0:02:26.9]} 14. Bg3
{[%clk 0:02:30.2]} 14... h5 {[%clk 0:02:27.5]} 15. h3 {[%clk 0:01:47.7]} 15...
h4 {[%clk 0:02:27.5]} 16. Bh2 {[%clk 0:01:47.9]} 16... Qb6 {[%clk 0:02:28.1]}
17. Kh1 {[%clk 0:01:47.3]} 17... O-O-O {[%clk 0:02:20]} 18. Na4 {[%clk
0:01:46.2]} 18... Qa5 {[%clk 0:02:16.1]} 19. c3 {[%clk 0:01:42.7]} 19... c4
{[%clk 0:02:14.3]} 20. Bc2 {[%clk 0:01:42.1]} 20... Nb6 {[%clk 0:01:50.7]} 21.
Bg1 {[%clk 0:01:38.1]} 21... Nxa4 {[%clk 0:01:45.8]} 22. Bxa4 {[%clk 0:01:39]}
22... Qc7 {[%clk 0:01:38.7]} 23. Bxc6 {[%clk 0:01:31.5]} 23... Qxc6 {[%clk
0:01:37.5]} 24. b4 {[%clk 0:01:29.6]} 24... d4 {[%clk 0:01:36.4]} 25. Bxd4
{[%clk 0:01:28]} 25... g4 {[%clk 0:01:36.9]} 26. hxg4 {[%clk 0:01:10.6]} 26...
h3 {[%clk 0:01:36.9]} 27. b5 {[%clk 0:01:06.8]} 27... axb5 {[%clk 0:01:27.6]}
28. Re3 {[%clk 0:00:56.9]} 28... hxg2+ {[%clk 0:01:23.5]} 29. Kxg2 {[%clk
0:00:57.8]} 29... Rh4 {[%clk 0:01:24]} 30. Kg3 {[%clk 0:00:48.2]} 30... Rdh8
{[%clk 0:01:23.7]} 31. Qb1 {[%clk 0:00:47.5]} 31... Rh3+ {[%clk 0:01:18.8]} 32.
Kf4 {[%clk 0:00:47.7]} 32... Rxf3+ {[%clk 0:01:15.5]} 33. Rxf3 {[%clk 0:00:47]}
33... Qxf3+ {[%clk 0:01:16.4]} 34. Kg5 {[%clk 0:00:47.7]} 34... Rg8+ {[%clk
0:01:14.4]} 35. Kh6 {[%clk 0:00:48.2]} 35... Qh3# {[%clk 0:01:14.2]} 0-1